Body,Body Name,Date,TransNo,Amount � (Excl VAT),Supplier name,Description,Expense Area,Expense Type,Expense Code,
http://opendatacommunities.org/id/london-borough-council/sutton,London Borough of Sutton,06/04/2018,1254870,23.28 , ASDA SUPERSTORE,ASDA SHOP,Peoples Services Directorate,Provisions - General,F150,
http://opendatacommunities.org/id/london-borough-council/sutton,London Borough of Sutton,03/04/2018,1254870,78.75 , SAINSBURYS TO YOU 0052,SAINSBURYS GROCERIES,Peoples Services Directorate,Provisions - General,F150,
http://opendatacommunities.org/id/london-borough-council/sutton,London Borough of Sutton,16/04/2018,1254870,84.83 , SAINSBURYS TO YOU 0052,SAINSBURYS SHOP,Peoples Services Directorate,Refreshments,F155,
http://opendatacommunities.org/id/london-borough-council/sutton,London Borough of Sutton,12/04/2018,1254870,9.54 , SAINSBURYS SACAT 2006,SAINSBURYS SHOP,Peoples Services Directorate,Refreshments,F155,
http://opendatacommunities.org/id/london-borough-council/sutton,London Borough of Sutton,09/04/2018,1254870,118.75 , SWAN,EXPEDIA HOTEL LCT,Peoples Services Directorate,Personal Requisites,F106,
http://opendatacommunities.org/id/london-borough-council/sutton,London Borough of Sutton,09/04/2018,1254870,56.25 , SWAN,EXPEDIA HOTEL LCT,Peoples Services Directorate,Personal Requisites,F106,
http://opendatacommunities.org/id/london-borough-council/sutton,London Borough of Sutton,09/04/2018,1254870,56.25 , SWAN,EXPEDIA HOTEL LCT,Peoples Services Directorate,Personal Requisites,F106,
http://opendatacommunities.org/id/london-borough-council/sutton,London Borough of Sutton,06/04/2018,1254870,10.00 , LBSUTTON,BIRTH CERT,Peoples Services Directorate,Personal Requisites,F106,
http://opendatacommunities.org/id/london-borough-council/sutton,London Borough of Sutton,17/04/2018,1254870,416.64 , WWW.ARGOS.CO.UK,REDACTED - PERSONAL DATA,Peoples Services Directorate,Personal Requisites,F106,
http://opendatacommunities.org/id/london-borough-council/sutton,London Borough of Sutton,17/04/2018,1254870,202.23 , WWW.ARGOS.CO.UK,REDACTED - PERSONAL DATA,Peoples Services Directorate,Personal Requisites,F106,
http://opendatacommunities.org/id/london-borough-council/sutton,London Borough of Sutton,06/04/2018,1254870,15.79 , NANDOS ELEPHANT & CAST,KB ACTIVITY AFTER COURT,Peoples Services Directorate,Personal Requisites,F106,
http://opendatacommunities.org/id/london-borough-council/sutton,London Borough of Sutton,26/03/2018,1254870,10.00 , LB CROYDON,FCF BIRTH CERTIFICATE,Peoples Services Directorate,Personal Requisites,F106,
http://opendatacommunities.org/id/london-borough-council/sutton,London Borough of Sutton,27/03/2018,1254870,8.33 , LBSUTTON,10.00 - F106 0304 9999 - BIRTH CERT,Peoples Services Directorate,Personal Requisites,F106,
http://opendatacommunities.org/id/london-borough-council/sutton,London Borough of Sutton,06/04/2018,1254870,132.08 , TRAVELODGE,ACCOMMODATION LEAVING CRE TEAM,Peoples Services Directorate,Accommodation - Bed and Breakfast,H202,
http://opendatacommunities.org/id/london-borough-council/sutton,London Borough of Sutton,06/04/2018,1254870,454.12 , FLYBEBJ39 BJ3968,FLIGHT FOR LEAVING CARE TEAM,Peoples Services Directorate,C.C.A Travel & Subsistance,H212,
http://opendatacommunities.org/id/london-borough-council/sutton,London Borough of Sutton,16/04/2018,1254870,213.58 , QUICKMANANDVAN.CO.UK,SA MOVING MAN AND VAN,Peoples Services Directorate,Set Up Costs - Children Leaving Care,H336,
http://opendatacommunities.org/id/london-borough-council/sutton,London Borough of Sutton,12/04/2018,1254870,637.47 , SUTTON APPLIANCES,WHITE GOODS ZH - SETTING UP,Peoples Services Directorate,Set Up Costs - Children Leaving Care,H336,
http://opendatacommunities.org/id/london-borough-council/sutton,London Borough of Sutton,12/04/2018,1254870,475.00 , AMAN FURNITURE LTD,SETTING UP FURNITURE ZH,Peoples Services Directorate,Set Up Costs - Children Leaving Care,H336,
http://opendatacommunities.org/id/london-borough-council/sutton,London Borough of Sutton,10/04/2018,1254870,12.50 , WILKO RETAIL LIMIT,SETTING UP ZH - BLIND,Peoples Services Directorate,Set Up Costs - Children Leaving Care,H336,
http://opendatacommunities.org/id/london-borough-council/sutton,London Borough of Sutton,20/04/2018,1254870,58.75 , ASDA SUPERSTORE,DR SETTING UP,Peoples Services Directorate,Set Up Costs - Children Leaving Care,H336,
http://opendatacommunities.org/id/london-borough-council/sutton,London Borough of Sutton,17/04/2018,1254870,150.50 , TVLICENSING.CO.UK,TV LICENSE MB,Peoples Services Directorate,Set Up Costs - Children Leaving Care,H336,
http://opendatacommunities.org/id/london-borough-council/sutton,London Borough of Sutton,28/03/2018,1254870,20.00 , TFL OYST PHOTOCARD,BH OYSTER TRAVEL,Peoples Services Directorate,C.C.A Travel & Subsistance,H212,
http://opendatacommunities.org/id/london-borough-council/sutton,London Borough of Sutton,29/03/2018,1254870,626.67 , SUTTON APPLIANCES,MM SETTING UP,Peoples Services Directorate,Set Up Costs - Children Leaving Care,H336,
http://opendatacommunities.org/id/london-borough-council/sutton,London Borough of Sutton,28/03/2018,1254870,248.94 , WWW.ARGOS.CO.UK,SET UP COSTS FOR AS FOR YP.,Peoples Services Directorate,Set Up Costs - Children Leaving Care,H336,
http://opendatacommunities.org/id/london-borough-council/sutton,London Borough of Sutton,28/03/2018,1254870,439.35 , WWW.ARGOS.CO.UK,PROVISONS PROVIDED FOR CLIENT FOR NEW PROPERTY,Peoples Services Directorate,Set Up Costs - Children Leaving Care,H336,
http://opendatacommunities.org/id/london-borough-council/sutton,London Borough of Sutton,03/04/2018,1254870,12.10 , WWW.WIGHTLINK.CO.UK,FERRY TO ISLE OF WRIGHT FOR SOCIAL WORK REVIEW,Peoples Services Directorate,Travelling and Subsistence Allowances,A530,
http://opendatacommunities.org/id/london-borough-council/sutton,London Borough of Sutton,16/04/2018,1254870,28.58 , WWW.WIGHTLINK.CO.UK,34.30 - A530 0311 9999 - WIGTLINK FERRY FOR BECKY PAGE.PDF,Peoples Services Directorate,Travelling and Subsistence Allowances,A530,
http://opendatacommunities.org/id/london-borough-council/sutton,London Borough of Sutton,13/04/2018,1254870,32.67 , WWW.WIGHTLINK.CO.UK,A530 0311 9999 - 39.20 - WIGHTLINK FERRY.PDF,Peoples Services Directorate,Travelling and Subsistence Allowances,A530,
http://opendatacommunities.org/id/london-borough-council/sutton,London Borough of Sutton,22/04/2018,1254870,20.00 , OYSTER AUTOTOPUP,OYSTER TOP UP,Peoples Services Directorate,Travelling and Subsistence Allowances,A530,
http://opendatacommunities.org/id/london-borough-council/sutton,London Borough of Sutton,15/04/2018,1254870,20.00 , OYSTER AUTOTOPUP,AUTOMATED TOP UP FOR OYSTER CARD,Peoples Services Directorate,Travelling and Subsistence Allowances,A530,
http://opendatacommunities.org/id/london-borough-council/sutton,London Borough of Sutton,12/04/2018,1254870,20.00 , OYSTER BUS AUTOTOP,AUTOMATED TOP UP FOR OYSTER CARD,Peoples Services Directorate,Travelling and Subsistence Allowances,A530,
http://opendatacommunities.org/id/london-borough-council/sutton,London Borough of Sutton,08/04/2018,1254870,20.00 , OYSTER AUTOTOPUP,AUTOMATED TOP UP FOR OYSTER CARD,Peoples Services Directorate,Travelling and Subsistence Allowances,A530,
http://opendatacommunities.org/id/london-borough-council/sutton,London Borough of Sutton,29/03/2018,1254870,20.00 , OYSTER BUS AUTOTOP,AUTOMATIC OYSTER TOP UP FOR LAC TEAM,Peoples Services Directorate,Travelling and Subsistence Allowances,A530,
http://opendatacommunities.org/id/london-borough-council/sutton,London Borough of Sutton,07/04/2018,1254870,20.00 , OYSTER AUTOTOPUP,OYSTER TOPUP,Peoples Services Directorate,Travelling and Subsistence Allowances,A530,
http://opendatacommunities.org/id/london-borough-council/sutton,London Borough of Sutton,09/04/2018,1254870,69.50 , WWW.TENPIN.CO.UK,BOWLING FOR FAMILY CONTACT,Peoples Services Directorate,Personal Requisites,F106,
http://opendatacommunities.org/id/london-borough-council/sutton,London Borough of Sutton,06/04/2018,1254870,(10.00), LBSUTTON,REFUND FOR BIRTH CERT 2,Peoples Services Directorate,Personal Requisites,F106,
http://opendatacommunities.org/id/london-borough-council/sutton,London Borough of Sutton,05/04/2018,1254870,30.08 , WWW.TENPIN.CO.UK,BOWLING FOR FAMILY CONTACT,Peoples Services Directorate,Personal Requisites,F106,
http://opendatacommunities.org/id/london-borough-council/sutton,London Borough of Sutton,03/04/2018,1254870,73.00 , WWW.OXYGENFREEJUMP,ACTIVITY FOR FAMILY CONTACT,Peoples Services Directorate,Personal Requisites,F106,
http://opendatacommunities.org/id/london-borough-council/sutton,London Borough of Sutton,28/03/2018,1254870,(10.00), LBSUTTON,REFUND FOR BIRTH CERT 1,Peoples Services Directorate,Personal Requisites,F106,
http://opendatacommunities.org/id/london-borough-council/sutton,London Borough of Sutton,27/03/2018,1254870,107.42 , TRAINLINE.COM LTD,MONTHLY TRAIN TICKET FOR LAC CHILD,Peoples Services Directorate,Personal Requisites,F106,
http://opendatacommunities.org/id/london-borough-council/sutton,London Borough of Sutton,18/04/2018,1254870,(25.00), HAMPSHIRE COUNTY COUNC,F106 0311 9999 - 30.00 REFUND - HAMPSHIRE COUNTY COUNCIL.PDF,Peoples Services Directorate,Personal Requisites,F106,
http://opendatacommunities.org/id/london-borough-council/sutton,London Borough of Sutton,25/04/2018,1254870,11.60 , RB KEN&CHELSEA,BIRTH CERT ORDERED FOR LAC TEAM,Peoples Services Directorate,Personal Requisites,F106,
http://opendatacommunities.org/id/london-borough-council/sutton,London Borough of Sutton,23/04/2018,1254870,10.00 , LBSUTTON,BIRTH CERTIFICATE,Peoples Services Directorate,Payments Under the Child Care Act 1980,H210,
http://opendatacommunities.org/id/london-borough-council/sutton,London Borough of Sutton,13/04/2018,1254870,233.33 , HOTEL REMBRANDT,280.00 - H211 0311 9999 - HOTEL BOOKING,Peoples Services Directorate,C.C.A Rent & Utilities,H211,
http://opendatacommunities.org/id/london-borough-council/sutton,London Borough of Sutton,10/04/2018,1254870,116.33 , CHALLENGETROPHIES CO U,280.00 - H211 0311 9999 - HOTEL BOOKING,Peoples Services Directorate,C.C.A Rent & Utilities,H211,
http://opendatacommunities.org/id/london-borough-council/sutton,London Borough of Sutton,29/03/2018,1254870,58.80 , WWW.WIGHTLINK.CO.UK,TRAVEL,Peoples Services Directorate,C.C.A Travel & Subsistance,H212,
http://opendatacommunities.org/id/london-borough-council/sutton,London Borough of Sutton,10/04/2018,1254870,12.50 , TFL OYST PHOTOCARD,15 - A530 0312 9999.PDF,Peoples Services Directorate,Travelling and Subsistence Allowances,A530,
http://opendatacommunities.org/id/london-borough-council/sutton,London Borough of Sutton,26/03/2018,1254870,904.50 , TRIPSTA,"1,085.40 - A530 0312 9999 FLIGHTS.PDF",Peoples Services Directorate,Travelling and Subsistence Allowances,A530,
http://opendatacommunities.org/id/london-borough-council/sutton,London Borough of Sutton,25/04/2018,1254870,20.00 , LBSUTTON,BIRTH CERT REQUIRED FOR THE COURT TEAM,Peoples Services Directorate,Travelling and Subsistence Allowances,A530,
http://opendatacommunities.org/id/london-borough-council/sutton,London Borough of Sutton,23/04/2018,1254870,20.00 , OYSTER AUTOTOPUP,OYSTER AUTO TOP UP,Peoples Services Directorate,Travelling and Subsistence Allowances,A530,
http://opendatacommunities.org/id/london-borough-council/sutton,London Borough of Sutton,15/04/2018,1254870,20.00 , OYSTER BUS AUTOTOP,AUTOMATED TOP UP FOR OYSTER CARD,Peoples Services Directorate,Travelling and Subsistence Allowances,A530,
http://opendatacommunities.org/id/london-borough-council/sutton,London Borough of Sutton,30/03/2018,1254870,48.60 , NATIONAL EXPRESS LIMIT,TRAVEL,Peoples Services Directorate,Hired Peoples Transport (Children),E072,
http://opendatacommunities.org/id/london-borough-council/sutton,London Borough of Sutton,25/04/2018,1254870,20.00 , LBSUTTON,BIRTH CERT REQUIRED FOR THE COURT TEAM/FSCP,Peoples Services Directorate,Personal Requisites,F106,
http://opendatacommunities.org/id/london-borough-council/sutton,London Borough of Sutton,25/04/2018,1254870,20.00 , LBSUTTON,BIRTH CERT REQUIRED FOR THE COURT TEAM,Peoples Services Directorate,Personal Requisites,F106,
http://opendatacommunities.org/id/london-borough-council/sutton,London Borough of Sutton,25/04/2018,1254870,20.00 , LBSUTTON,BIRTH CERT REQUIRED FOR THE COURT TEAM,Peoples Services Directorate,Personal Requisites,F106,
http://opendatacommunities.org/id/london-borough-council/sutton,London Borough of Sutton,23/03/2018,1254870,(7.71), GRO HM PASSPORT OFFICE,F106 0312 9999 - 9.25 - GRO HM PASSORT REFUND.PDF,Peoples Services Directorate,Personal Requisites,F106,
http://opendatacommunities.org/id/london-borough-council/sutton,London Borough of Sutton,18/04/2018,1254870,5.50 , AMAZON UK MARKETPLACE,6.60 - F106 0312 9999 - AMAZON ITEMS REQUESTED BY SW.PDF,Peoples Services Directorate,Personal Requisites,F106,
http://opendatacommunities.org/id/london-borough-council/sutton,London Borough of Sutton,23/04/2018,1254870,10.00 , LBSUTTON,BIRTH CERT REQUIRED FOR THE COURT TEAM/FSCP,Peoples Services Directorate,Personal Requisites,F106,
http://opendatacommunities.org/id/london-borough-council/sutton,London Borough of Sutton,23/04/2018,1254870,10.00 , LBSUTTON,BIRTH CERT REQUIRED FOR THE COURT TEAM/FSCP,Peoples Services Directorate,Personal Requisites,F106,
http://opendatacommunities.org/id/london-borough-council/sutton,London Borough of Sutton,29/03/2018,1254870,120.00 , WM MORRISONS,PURCHASE OF !20.00 MORRISONS VOUCHERS FOR COURT,Peoples Services Directorate,Provisions - General,F150,
http://opendatacommunities.org/id/london-borough-council/sutton,London Borough of Sutton,29/03/2018,1254870,44.17 , NATIONAL EXPRESS LIMIT,53.00 - H212 0312 9999 - NATIONAL EXPRESS TICKET,Peoples Services Directorate,C.C.A Travel & Subsistance,H212,
http://opendatacommunities.org/id/london-borough-council/sutton,London Borough of Sutton,23/04/2018,1254870,16.67 , LBSUTTON,H210 0312 9999 - PARSONS BIRTH CERTIFICATE - 20.00 - COPY OF APPLICATION - 23.04.2018 .PDF,Peoples Services Directorate,Payments Under the Child Care Act 1980,H210,
http://opendatacommunities.org/id/london-borough-council/sutton,London Borough of Sutton,18/04/2018,1254870,25.00 , HAMPSHIRE COUNTY COUNC,H211 0316 9999 - 494.50 - TRAVELODGE.PDF,Peoples Services Directorate,C.C.A Rent & Utilities,H211,
http://opendatacommunities.org/id/london-borough-council/sutton,London Borough of Sutton,28/03/2018,1254870,373.21 , TRAVELODGE,447.85 - H211 0316 9999 - TRAVELODGE TALWORTH,Peoples Services Directorate,C.C.A Rent & Utilities,H211,
http://opendatacommunities.org/id/london-borough-council/sutton,London Borough of Sutton,19/04/2018,1254870,412.08 , TRAVELODGE,1998 - TRAVEL LODGE,Peoples Services Directorate,C.C.A Travel & Subsistance,H212,
http://opendatacommunities.org/id/london-borough-council/sutton,London Borough of Sutton,19/04/2018,1254870,"1,665.00 ", TRAVELODGE,1998 - TRAVEL LODGE,Peoples Services Directorate,C.C.A Travel & Subsistance,H212,
http://opendatacommunities.org/id/london-borough-council/sutton,London Borough of Sutton,19/04/2018,1254870,478.33 , TRAVELODGE,ACCOMMODATION FOR MISS JF.PDF,Peoples Services Directorate,C.C.A Travel & Subsistance,H212,
http://opendatacommunities.org/id/london-borough-council/sutton,London Borough of Sutton,04/04/2018,1254870,726.25 , TRAVELODGE,REDACTED - PERSONAL DATA,Peoples Services Directorate,Client Care/Assistance,H301,
http://opendatacommunities.org/id/london-borough-council/sutton,London Borough of Sutton,13/04/2018,1254870,20.00 , OYSTER BUS AUTOTOP,AUTOMATED TOP UP FOR OYSTER CARD,Peoples Services Directorate,Travelling and Subsistence Allowances,A530,
http://opendatacommunities.org/id/london-borough-council/sutton,London Borough of Sutton,29/03/2018,1254870,120.00 , WM MORRISONS,PURCHASE OF !20.00 MORRISONS VOUCHERS FOR RED EADT LOCALITY,Peoples Services Directorate,Provisions - General,F150,
http://opendatacommunities.org/id/london-borough-council/sutton,London Borough of Sutton,23/04/2018,1254870,359.96 , PREMIER INN,CLIENT ACCOMADATION,Peoples Services Directorate,Travelling and Subsistence Allowances,A530,
http://opendatacommunities.org/id/london-borough-council/sutton,London Borough of Sutton,03/04/2018,1254870,15.42 , MARKS&SPENCER PLC,FOOD FOR FOSTERING PANEL,Peoples Services Directorate,Refreshments,F155,
http://opendatacommunities.org/id/london-borough-council/sutton,London Borough of Sutton,23/04/2018,1254870,185.80 , PREMIER INN,EMERGENCY ACCOMADATION FOR CLIENT IN THE FOSTERING & ADOPTION TEAM.,Peoples Services Directorate,Accommodation - Bed and Breakfast,H202,
http://opendatacommunities.org/id/london-borough-council/sutton,London Borough of Sutton,23/04/2018,1254870,222.47 , PREMIER INN,CLIENT ACCOMADATION,Peoples Services Directorate,Accommodation - Bed and Breakfast,H202,
http://opendatacommunities.org/id/london-borough-council/sutton,London Borough of Sutton,23/04/2018,1254870,247.92 , PREMIER INN,,Peoples Services Directorate,Accommodation - Bed and Breakfast,H202,
http://opendatacommunities.org/id/london-borough-council/sutton,London Borough of Sutton,25/04/2018,1254870,28.99 , AMAZON UK MARKETPLACE,MATERIALS BOUGHT FOR LAC PLACEMENTS TEAM.,Peoples Services Directorate,Materials - General,F100,
http://opendatacommunities.org/id/london-borough-council/sutton,London Borough of Sutton,05/04/2018,1254870,15.78 , WWW.ARGOS.CO.UK,FAN FOR DS,Peoples Services Directorate,Personal Requisites,F106,
http://opendatacommunities.org/id/london-borough-council/sutton,London Borough of Sutton,23/04/2018,1254870,170.00 , COUNTY COUNTY,COURT ADOPTION APPLICATION,Peoples Services Directorate,Personal Requisites,F106,
http://opendatacommunities.org/id/london-borough-council/sutton,London Borough of Sutton,17/04/2018,1254870,31.15 , TESCO STORES 5999,F155 0340 9999 - 37.38 - TESCO PURCHASE.PDF,Peoples Services Directorate,Refreshments,F155,
http://opendatacommunities.org/id/london-borough-council/sutton,London Borough of Sutton,17/04/2018,1254870,(1.82), TESCO STORES 5999,F155 0340 9999 - 2.18 - TESCO REFUND.PDF,Peoples Services Directorate,Refreshments,F155,
http://opendatacommunities.org/id/london-borough-council/sutton,London Borough of Sutton,06/04/2018,1254870,882.08 , TRAVELODGE,TEMPORARY ACCOMMODATION - MISS IO,Peoples Services Directorate,Travelling and Subsistence Allowances,A530,
http://opendatacommunities.org/id/london-borough-council/sutton,London Borough of Sutton,23/04/2018,1254870,150.00 , TESCO STORE 3235,TESCO VOUCHERS FOR FGC'S,Peoples Services Directorate,Refreshments,F155,
http://opendatacommunities.org/id/london-borough-council/sutton,London Borough of Sutton,29/03/2018,1254870,426.46 , TRAVELODGE,EMERGENCY ACCOMADATION FOR CLIENT IN THE FOSTERING & ADOPTION TEAM.,Peoples Services Directorate,C.C.A Rent & Utilities,H211,
http://opendatacommunities.org/id/london-borough-council/sutton,London Borough of Sutton,12/04/2018,1254870,16.67 , PIZZA HUT ONLINE WEB,PIZZA FOR QA CIC MEETING,Peoples Services Directorate,Personal Requisites,F106,
http://opendatacommunities.org/id/london-borough-council/sutton,London Borough of Sutton,03/04/2018,1254870,230.00 , WESTMINSTER FORUM,SAFEGUARDING CHILDREN SEMINAR,Peoples Services Directorate,Training - Course Fees,A520,
http://opendatacommunities.org/id/london-borough-council/sutton,London Borough of Sutton,05/04/2018,1254870,20.00 , OYSTER BUS AUTOTOP,OYSTER TOP UP,Peoples Services Directorate,Travelling and Subsistence Allowances,A530,
http://opendatacommunities.org/id/london-borough-council/sutton,London Borough of Sutton,26/03/2018,1254870,125.00 , TESCO STORE,150.00 - G322 0371 9999 - TESCO GIFT CARD RECEIPTS - PLAY & STAY EASTER ACTIVITY.PDF,Peoples Services Directorate,Play Groups,G322,
http://opendatacommunities.org/id/london-borough-council/sutton,London Borough of Sutton,11/04/2018,1254870,166.35 , TRAVELODGE,SPLIT - TRAVEL LODGE ROOMS - SOLACE SUMMIT,"Environment, Housing & Regeneration Directorate",Travelling and Subsistence Allowances,A530,
http://opendatacommunities.org/id/london-borough-council/sutton,London Borough of Sutton,09/04/2018,1254870,5.49 , ARGOS RETAIL GROUP,TRAVEL KETTLE TO USE FOR MEETINGS AT DENMARK ROAD,"Environment, Housing & Regeneration Directorate",General Office Expenses,F235,
http://opendatacommunities.org/id/london-borough-council/sutton,London Borough of Sutton,24/04/2018,1254870,274.94 , WWW.THEVISORSHOP.COM,BATTERY RECHARGER FOR P&D MACHINES,"Environment, Housing & Regeneration Directorate",Other Equipment - Purchase,F015,
http://opendatacommunities.org/id/london-borough-council/sutton,London Borough of Sutton,05/04/2018,1254870,31.55 , WILKO RETAIL LIMIT,DVD AND WALLETS FOR CCTV DOWNLOADS,"Environment, Housing & Regeneration Directorate",Materials - General,F100,
http://opendatacommunities.org/id/london-borough-council/sutton,London Borough of Sutton,09/04/2018,1254870,80.30 , PAYPAL  SIGNSDISPLA,HEALTH AND SAFETY SIGNS,"Environment, Housing & Regeneration Directorate",Other-Materials,F115,
http://opendatacommunities.org/id/london-borough-council/sutton,London Borough of Sutton,05/04/2018,1254870,18.03 , WH SMITH,PAPER FOR APPLICATION FORMS,"Environment, Housing & Regeneration Directorate",Stationery,F220,
http://opendatacommunities.org/id/london-borough-council/sutton,London Borough of Sutton,10/04/2018,1254870,15.45 , AMAZON UK MARKETPLACE,10 X DISPLAY4TOP A4 ACRYLIC POSTER MENU HOLDER DISPLAY STANDS,Chief Executive's Directorate,Books,F006,
http://opendatacommunities.org/id/london-borough-council/sutton,London Borough of Sutton,10/04/2018,1254870,15.45 , AMAZON UK MARKETPLACE,10 X DISPLAY4TOP A4 ACRYLIC POSTER MENU HOLDER DISPLAY STANDS,Chief Executive's Directorate,Books,F006,
http://opendatacommunities.org/id/london-borough-council/sutton,London Borough of Sutton,10/04/2018,1254870,15.45 , AMAZON UK MARKETPLACE,10 X DISPLAY4TOP A4 ACRYLIC POSTER MENU HOLDER DISPLAY STANDS,Chief Executive's Directorate,Books,F006,
http://opendatacommunities.org/id/london-borough-council/sutton,London Borough of Sutton,10/04/2018,1254870,15.45 , AMAZON UK MARKETPLACE,10 X DISPLAY4TOP A4 ACRYLIC POSTER MENU HOLDER DISPLAY STANDS,Chief Executive's Directorate,Books,F006,
http://opendatacommunities.org/id/london-borough-council/sutton,London Borough of Sutton,09/04/2018,1254870,15.45 , AMAZON UK MARKETPLACE,10 X DISPLAY4TOP A4 ACRYLIC POSTER MENU HOLDER DISPLAY STANDS,Chief Executive's Directorate,Books,F006,
http://opendatacommunities.org/id/london-borough-council/sutton,London Borough of Sutton,09/04/2018,1254870,15.45 , AMAZON UK MARKETPLACE,10 X DISPLAY4TOP A4 ACRYLIC POSTER MENU HOLDER DISPLAY STANDS,Chief Executive's Directorate,Books,F006,
http://opendatacommunities.org/id/london-borough-council/sutton,London Borough of Sutton,09/04/2018,1254870,15.45 , AMAZON UK MARKETPLACE,10 X DISPLAY4TOP A4 ACRYLIC POSTER MENU HOLDER DISPLAY STANDS,Chief Executive's Directorate,Books,F006,
http://opendatacommunities.org/id/london-borough-council/sutton,London Borough of Sutton,09/04/2018,1254870,15.45 , AMAZON UK MARKETPLACE,10 X DISPLAY4TOP A4 ACRYLIC POSTER MENU HOLDER DISPLAY STANDS,Chief Executive's Directorate,Books,F006,
http://opendatacommunities.org/id/london-borough-council/sutton,London Borough of Sutton,09/04/2018,1254870,15.45 , AMAZON UK MARKETPLACE,10 X DISPLAY4TOP A4 ACRYLIC POSTER MENU HOLDER DISPLAY STANDS,Chief Executive's Directorate,Books,F006,
http://opendatacommunities.org/id/london-borough-council/sutton,London Borough of Sutton,09/04/2018,1254870,15.45 , AMAZON UK MARKETPLACE,10 X DISPLAY4TOP A4 ACRYLIC POSTER MENU HOLDER DISPLAY STANDS,Chief Executive's Directorate,Books,F006,
http://opendatacommunities.org/id/london-borough-council/sutton,London Borough of Sutton,11/04/2018,1254870,(98.89), AMZ EASYACC STORE,REFUND TO LIBRARIES FOR 11 X EASYACC SAMSUNG GALAXY TAB COVERS,Chief Executive's Directorate,Repairs to Administrative Equipment,F030,
http://opendatacommunities.org/id/london-borough-council/sutton,London Borough of Sutton,27/03/2018,1254870,677.08 , WWW.IKEA.COM,IKEA - PICTURE FRAMES,Chief Executive's Directorate,Materials - General,F100,
http://opendatacommunities.org/id/london-borough-council/sutton,London Borough of Sutton,06/04/2018,1254870,109.89 , AMAZON UK MARKETPLACE,"LIBRARY SERVICE - 11 X EASYACC SAMSUNG GALAXY TAB S2 9.7 CASE,",Chief Executive's Directorate,Stationery,F220,
http://opendatacommunities.org/id/london-borough-council/sutton,London Borough of Sutton,29/03/2018,1254870,21.98 , AMAZON UK MARKETPLACE,LIBRARY SERVICES-2 X KUUQA 10 PIECES A4 PLASTIC WALLET ZIP FILE DOCUMENT BAGS,Chief Executive's Directorate,Stationery,F220,
http://opendatacommunities.org/id/london-borough-council/sutton,London Borough of Sutton,08/04/2018,1254870,7.49 , WAITROSE 661,REFRESHMENTS FOCUS GROUP,Resources Directorate,Refreshments,F155,
http://opendatacommunities.org/id/london-borough-council/sutton,London Borough of Sutton,08/04/2018,1254870,5.00 , ICELAND,REFRESHMENTS FOCUS GROUP,Resources Directorate,Refreshments,F155,
http://opendatacommunities.org/id/london-borough-council/sutton,London Borough of Sutton,01/03/2018,1254868,185.22 , LINKEDIN 3928652383 LN,LINKED IN ADVERT PAYMENT,HRA,Staff Advertising,A500,
http://opendatacommunities.org/id/london-borough-council/sutton,London Borough of Sutton,19/04/2018,1254870,20.00 , OYSTER AUTOTOPUP,TOP UP FOR EH&R OYSTER CARD,HRA,General Office Expenses,F235,
http://opendatacommunities.org/id/london-borough-council/sutton,London Borough of Sutton,12/04/2018,1254870,86.50 , VIRGIN TRAINS,TRAVEL,"Environment, Housing & Regeneration Directorate",Travelling and Subsistence Allowances,A530,
http://opendatacommunities.org/id/london-borough-council/sutton,London Borough of Sutton,13/04/2018,1254870,20.00 , OYSTER AUTOTOPUP,TOP UP FOR EH&R OYSTER CARD,"Environment, Housing & Regeneration Directorate",General Office Expenses,F235,
http://opendatacommunities.org/id/london-borough-council/sutton,London Borough of Sutton,09/04/2018,1254870,25.00 , OYSTER ISSUE WEB,TOP UP FOR EH&R OYSTER CARD,"Environment, Housing & Regeneration Directorate",General Office Expenses,F235,
http://opendatacommunities.org/id/london-borough-council/sutton,London Borough of Sutton,09/04/2018,1254870,20.00 , OYSTER RENEW WEB,TOP UP FOR EH&R OYSTER CARD,"Environment, Housing & Regeneration Directorate",General Office Expenses,F235,
http://opendatacommunities.org/id/london-borough-council/sutton,London Borough of Sutton,13/04/2018,1254870,6.40 , CLOCK TOWER CARS,TAXI TO RETURN FROM SCS DIRECT AWARD MEETING ON 16.04.18,Chief Executive's Directorate,Travelling and Subsistence Allowances,A530,
http://opendatacommunities.org/id/london-borough-council/sutton,London Borough of Sutton,13/04/2018,1254870,6.60 , CLOCK TOWER CARS,TAXI ON 16.04.18 TO ATTEND SCS DIRECT AWARD MEETING AT CCG,Chief Executive's Directorate,Travelling and Subsistence Allowances,A530,
http://opendatacommunities.org/id/london-borough-council/sutton,London Borough of Sutton,13/04/2018,1254870,18.80 , CLOCK TOWER CARS,TAXI TO ATTEND A MEETING AT KINGSTON,Chief Executive's Directorate,Travelling and Subsistence Allowances,A530,
http://opendatacommunities.org/id/london-borough-council/sutton,London Borough of Sutton,11/04/2018,1254870,184.00 , TRAVELODGE,TRAVEL LODGE BOOKING 16.10.18 - 19.10.18 FOR ATTENDANCE TO SOLACE SUMMIT 2018,Chief Executive's Directorate,Travelling and Subsistence Allowances,A530,
http://opendatacommunities.org/id/london-borough-council/sutton,London Borough of Sutton,11/04/2018,1254870,388.15 , TRAVELODGE,SPLIT - TRAVEL LODGE ROOMS TO ATTEND SOLACE SUMMIT,Chief Executive's Directorate,Travelling and Subsistence Allowances,A530,
http://opendatacommunities.org/id/london-borough-council/sutton,London Borough of Sutton,11/04/2018,1254870,(184.00), TRAVELODGE,"REFUND FOR TRAVEL LODGE BOOKING 16.10.18 - 19.10.18, ATTENDANCE TO SOLACE SUMMIT",Chief Executive's Directorate,Travelling and Subsistence Allowances,A530,
http://opendatacommunities.org/id/london-borough-council/sutton,London Borough of Sutton,10/04/2018,1254870,(5.70), CLOCK TOWER CARS,CANCELLATION OF TAXI ON 10.04.18,Chief Executive's Directorate,Travelling and Subsistence Allowances,A530,
http://opendatacommunities.org/id/london-borough-council/sutton,London Borough of Sutton,06/04/2018,1254870,5.70 , CLOCK TOWER CARS,TAXI ON 10.04.18 FROM CIVIC TO ICR SUTTON.,Chief Executive's Directorate,Travelling and Subsistence Allowances,A530,
http://opendatacommunities.org/id/london-borough-council/sutton,London Borough of Sutton,20/04/2018,1254870,20.00 , OYSTER BUS AUTOSET,TEAM OYSTER,Chief Executive's Directorate,Travelling and Subsistence Allowances,A530,
http://opendatacommunities.org/id/london-borough-council/sutton,London Borough of Sutton,20/04/2018,1254870,20.00 , OYSTER BUS AUTOSET,TEAM OYSTER,Chief Executive's Directorate,Travelling and Subsistence Allowances,A530,
http://opendatacommunities.org/id/london-borough-council/sutton,London Borough of Sutton,06/04/2018,1254870,20.00 , OYSTER AUTOTOPUP,TEAM OYSTER,Chief Executive's Directorate,Travelling and Subsistence Allowances,A530,
http://opendatacommunities.org/id/london-borough-council/sutton,London Borough of Sutton,29/03/2018,1254870,20.00 , OYSTER AUTOTOPUP,TEAM OYSTER,Chief Executive's Directorate,Travelling and Subsistence Allowances,A530,
http://opendatacommunities.org/id/london-borough-council/sutton,London Borough of Sutton,25/04/2018,1254870,396.00 , ETC VENUES,ROOM HIRE FOR CMT AWAY DAY ON 06 JUNE 2018 AS PER THE REQUEST OF THE CEX,Chief Executive's Directorate,Fees - Room Hire,F290,
http://opendatacommunities.org/id/london-borough-council/sutton,London Borough of Sutton,16/04/2018,1254870,6.77 , MAILCHIMP    MONTHLY,WEB HOSTING,Chief Executive's Directorate,Fees - Computer Software,F384,
http://opendatacommunities.org/id/london-borough-council/sutton,London Borough of Sutton,14/04/2018,1254870,246.07 , MAILCHIMP    MONTHLY,WEB HOSTING,Chief Executive's Directorate,Fees - Computer Software,F384,
http://opendatacommunities.org/id/london-borough-council/sutton,London Borough of Sutton,13/04/2018,1254870,30.61 , PAYPAL  GOOGLEADDON,PREMIUM SUBSCRIPTION FOR FORM PUBLISHER,Resources Directorate,IT Licences,F385,
http://opendatacommunities.org/id/london-borough-council/sutton,London Borough of Sutton,28/03/2018,1254870,15.00 , OYSTER ISSUE WEB,,Resources Directorate,Travelling and Subsistence Allowances,A530,
http://opendatacommunities.org/id/london-borough-council/sutton,London Borough of Sutton,28/03/2018,1254870,15.00 , OYSTER ISSUE WEB,,Resources Directorate,Travelling and Subsistence Allowances,A530,
http://opendatacommunities.org/id/london-borough-council/sutton,London Borough of Sutton,28/03/2018,1254870,15.00 , OYSTER ISSUE WEB,PURCHASE OF A NEW OYSTER CARD,Resources Directorate,Travelling and Subsistence Allowances,A530,
http://opendatacommunities.org/id/london-borough-council/sutton,London Borough of Sutton,28/03/2018,1254870,15.00 , OYSTER ISSUE WEB,PURCHASE OF NEW OYSTER CARD,Resources Directorate,Travelling and Subsistence Allowances,A530,
http://opendatacommunities.org/id/london-borough-council/sutton,London Borough of Sutton,28/03/2018,1254870,15.00 , OYSTER ISSUE WEB,PURCHASE OF NEW OYSTER CARD,Resources Directorate,Travelling and Subsistence Allowances,A530,
http://opendatacommunities.org/id/london-borough-council/sutton,London Borough of Sutton,28/03/2018,1254870,15.00 , OYSTER ISSUE WEB,PURCHASE OF NEW OYSTER CARD,Resources Directorate,Travelling and Subsistence Allowances,A530,
http://opendatacommunities.org/id/london-borough-council/sutton,London Borough of Sutton,28/03/2018,1254870,15.00 , OYSTER ISSUE WEB,PURCHASE OF NEW OYSTER CARD,Resources Directorate,Travelling and Subsistence Allowances,A530,
http://opendatacommunities.org/id/london-borough-council/sutton,London Borough of Sutton,28/03/2018,1254870,15.00 , OYSTER ISSUE WEB,PURCHASE OF NEW OYSTER CARD,Resources Directorate,Travelling and Subsistence Allowances,A530,
http://opendatacommunities.org/id/london-borough-council/sutton,London Borough of Sutton,28/03/2018,1254870,15.00 , OYSTER ISSUE WEB,PURCHASE OF NEW OYSTER CARD,Resources Directorate,Travelling and Subsistence Allowances,A530,
http://opendatacommunities.org/id/london-borough-council/sutton,London Borough of Sutton,24/04/2018,1254870,4.17 , THE WORKS,F001 4114 9999 - FOLDERS FROM THE WORKS - 5.00 - 24.04.2018.PDF,Resources Directorate,Provisions - General,F150,
http://opendatacommunities.org/id/london-borough-council/sutton,London Borough of Sutton,02/04/2018,1254870,26.90 , AMAZON UK MARKETPLACE,TORCH AND BATTERY FOR LALO BAG,"Environment, Housing & Regeneration Directorate",Other Equipment - Purchase,F015,
http://opendatacommunities.org/id/london-borough-council/sutton,London Borough of Sutton,10/04/2018,1254870,210.00 , TRAINLINE,TRAIN TICKETS TO COVENTRY 18 - 19 APRIL 2018,Resources Directorate,Travelling and Subsistence Allowances,A530,
http://opendatacommunities.org/id/london-borough-council/sutton,London Borough of Sutton,10/04/2018,1254870,545.00 , REDACTIVE,CIPFA CONFERENCE FEE 11 - 12 JULY 2018 AT BOURNEMOUTH INTERNATIONAL CONFERENCE.,Resources Directorate,Travelling and Subsistence Allowances,A530,
http://opendatacommunities.org/id/london-borough-council/sutton,London Borough of Sutton,05/04/2018,1254870,20.00 , OYSTER AUTOTOPUP,OYSTER AUTO TOP UP,Chief Executive's Directorate,Travelling and Subsistence Allowances,A530,
http://opendatacommunities.org/id/london-borough-council/sutton,London Borough of Sutton,24/04/2018,1254870,266.65 , WWW.ARGOS.CO.UK,CL&G PURCHASE OF FRIDGE/FREEZER AND WASHING MACHINE,Resources Directorate,Grants,F473,
http://opendatacommunities.org/id/london-borough-council/sutton,London Borough of Sutton,06/04/2018,1254870,69.95 , WWW.ARGOS.CO.UK,PURCHASE OF BED FRAME FOR CRISIS GRANT,Resources Directorate,Grants,F473,
http://opendatacommunities.org/id/london-borough-council/sutton,London Borough of Sutton,28/03/2018,1254870,72.45 , WWW.ARGOS.CO.UK,PURCHASE OF DOUBLE MATTRESS FOR CRISIS GRANT,Resources Directorate,Grants,F473,
http://opendatacommunities.org/id/london-borough-council/sutton,London Borough of Sutton,14/04/2018,1254870,33.33 , OYSTER AUTOTOPUP,OYSTER TOP UP FOR BENEFITS STAFF TRAVEL,Resources Directorate,Travelling and Subsistence Allowances,A530,
http://opendatacommunities.org/id/london-borough-council/sutton,London Borough of Sutton,07/04/2018,1254870,33.33 , OYSTER BUS AUTOTOP,OYSTER TOP UP FOR BENEFITS STAFF TRAVEL,Resources Directorate,Travelling and Subsistence Allowances,A530,
http://opendatacommunities.org/id/london-borough-council/sutton,London Borough of Sutton,17/04/2018,1254870,13.00 , COMPANIES HOUSE,STATEMENT FEE FOR FILING FOR THE LONDON CANCER HUB LLP,Resources Directorate,Fees - Other,F299,
http://opendatacommunities.org/id/london-borough-council/sutton,London Borough of Sutton,10/04/2018,1254870,33.75 , AMAZON EU,ASSESSMENT BOOK FOR CLINICAL HEALTH,Peoples Services Directorate,Books,F006,
http://opendatacommunities.org/id/london-borough-council/sutton,London Borough of Sutton,25/04/2018,1254870,56.45 , AMAZON EU,BOOKS ORDERED FOR THE TRANSISTIONS TEAM,Peoples Services Directorate,Personal Requisites,F106,
http://opendatacommunities.org/id/london-borough-council/sutton,London Borough of Sutton,25/04/2018,1254870,19.99 , AMAZON EU,MATERIALS PURCHASED FOR TRANSISTIONS TEAM.,Peoples Services Directorate,Provisions - General,F150,
http://opendatacommunities.org/id/london-borough-council/sutton,London Borough of Sutton,06/04/2018,1254870,862.71 , TRAVELODGE,EMERGENCY ACCOMMODATION,Peoples Services Directorate,Accommodation - Bed and Breakfast,H202,
http://opendatacommunities.org/id/london-borough-council/sutton,London Borough of Sutton,20/04/2018,1254870,689.42 , TRAVELODGE,TRAVELODGE,Peoples Services Directorate,Client Care/Assistance,H301,
http://opendatacommunities.org/id/london-borough-council/sutton,London Borough of Sutton,07/04/2018,1254870,20.00 , OYSTER BUS AUTOTOP,OYSTER TOPUP,Peoples Services Directorate,Travelling and Subsistence Allowances,A530,
http://opendatacommunities.org/id/london-borough-council/sutton,London Borough of Sutton,30/03/2018,1254870,20.00 , OYSTER AUTOTOPUP,OYSTER TOP UP FOR MENTAL HEALTH TEAM,Peoples Services Directorate,Travelling and Subsistence Allowances,A530,
http://opendatacommunities.org/id/london-borough-council/sutton,London Borough of Sutton,29/03/2018,1254870,20.00 , OYSTER BUS AUTOTOP,OYSTER TOP UP,Peoples Services Directorate,Travelling and Subsistence Allowances,A530,
http://opendatacommunities.org/id/london-borough-council/sutton,London Borough of Sutton,28/03/2018,1254870,20.00 , OYSTER BUS AUTOTOP,OYSTER TOP UP,Peoples Services Directorate,Travelling and Subsistence Allowances,A530,
http://opendatacommunities.org/id/london-borough-council/sutton,London Borough of Sutton,29/03/2018,1254870,120.00 , WM MORRISONS,PURCHASE OF !20.00 MORRISONS VOUCHERS FOR MENTAL HEALTH TEAM,Peoples Services Directorate,Provisions - General,F150,
http://opendatacommunities.org/id/london-borough-council/sutton,London Borough of Sutton,25/04/2018,1254870,27.04 , EFLORIST.CO.UK,32.45 - F150 6424 9999 - FLOWERS FOR FUNERAL.PDF,Peoples Services Directorate,Provisions - General,F150,
http://opendatacommunities.org/id/london-borough-council/sutton,London Borough of Sutton,29/03/2018,1254870,120.00 , WM MORRISONS,PURCHASE OF !20.00 MORRISONS VOUCHERS FOR ADULTS,Peoples Services Directorate,Provisions - General,F150,
http://opendatacommunities.org/id/london-borough-council/sutton,London Borough of Sutton,04/04/2018,1254870,75.00 , 052 JOHN LEWIS,SOCIAL WORK REQUEST FOR ADULT CLIENT,Peoples Services Directorate,Client Care/Assistance,H301,
http://opendatacommunities.org/id/london-borough-council/sutton,London Borough of Sutton,13/04/2018,1254870,20.00 , OYSTER AUTOTOPUP,AUTOMATED TOP UP FOR OYSTER CARD,Peoples Services Directorate,Travelling and Subsistence Allowances,A530,
http://opendatacommunities.org/id/london-borough-council/sutton,London Borough of Sutton,29/03/2018,1254870,120.00 , WM MORRISONS,PURCHASE OF !20.00 MORRISONS VOUCHERS FOR ADULTS LOCALITY B,Peoples Services Directorate,Provisions - General,F150,
http://opendatacommunities.org/id/london-borough-council/sutton,London Borough of Sutton,29/03/2018,1254870,(2.00), AMZ THESNUGG,REFUND FOR BILLING ERROR FROM AMAZON - THE ORIGINAL PURCHASE WAS A KEYBOARD,Peoples Services Directorate,Other Equipment - Purchase,F015,
http://opendatacommunities.org/id/london-borough-council/sutton,London Borough of Sutton,18/04/2018,1254870,10.00 , WWW.GOV.UK,PROBATE SEARCH,Peoples Services Directorate,Fees - Other,F299,
